bitfinex/quotes_ETHUSD_20250223
["timestamp","ask_amount","ask_price","bid_price","bid_amount"]
[1740273095321,0.7578,2776.7,2776.5,3.60164]
[1740273095499,0.8142971,2776.7,2776.5,3.60164]
[1740273096426,0.8142971,2776.7,2776.5,3.60159]
[1740273096636,0.8142971,2776.7,2776.5,7.20314]
[1740273097549,0.8142971,2776.7,2776.5,7.20315]
[1740273098686,0.8142971,2776.7,2776.5,3.60157]
[1740273098888,0.8142971,2776.7,2776.6,3.60152]
[1740273100286,1.3642971,2776.7,2776.6,3.60152]
[1740273101226,1.3642971,2776.7,2776.5,3.60157]
[1740273104029,0.55,2776.6,2776.4,3.60177]
[1740273104236,4.15154,2776.6,2776.1,3.85908]
[1740273104533,4.15154,2776.6,2775.9,3.60234]
[1740273104534,4.90829,2776.4,2775.9,3.60234]
[1740273104833,10.14829,2776.4,2775.9,3.85934]
[1740273105002,0.55,2776.2,2775.9,3.85934]
[1740273105197,0.55,2776.2,2775.9,0.257]
[1740273105405,0.05581104,2776.1,2775.9,0.257]
[1740273105736,0.7565,2776.0,2775.8,3.60254]
[1740273105934,0.8120454,2776.0,2775.8,3.60254]
[1740273106648,0.8120454,2776.0,2775.6,3.60279]
[1740273106649,0.55,2775.9,2775.6,3.60279]
[1740273106798,0.55,2775.9,2775.5,2.14654575]
[1740273107138,0.55,2775.7,2775.5,5.48058025]
[1740273107637,0.05462242,2775.6,2775.5,5.48058025]
[1740273109504,0.05462242,2775.6,2775.4,8.21014341]
[1740273109837,0.05462242,2775.6,2775.5,3.60295]
[1740273112336,0.81692242,2775.6,2775.5,3.60295]
[1740273113057,0.55,2775.5,2775.2,10.95924]
[1740273113540,0.05382617,2775.4,2775.2,10.95924]
[1740273113742,0.05382617,2775.4,2775.2,3.60324]
[1740273113941,0.05382617,2775.4,2775.1,0.70501743]
[1740273114243,0.05382617,2775.4,2775.1,4.30847743]
[1740273115844,0.05382617,2775.4,2775.1,0.70501743]
[1740273116138,0.7623,2775.2,2775.0,4.5792153]
[1740273116348,0.7623,2775.2,2775.0,4.3222153]
[1740273116541,0.05334239,2775.1,2775.0,4.3222153]
[1740273117525,0.05334239,2775.1,2775.0,4.59111502]
[1740273118449,0.55,2775.4,2775.0,4.59111502]
[1740273118747,0.55,2775.4,2775.1,3.60338]
[1740273118924,0.05350079,2775.3,2775.1,3.60338]
[1740273119119,0.05350079,2775.3,2775.1,3.60337]
[1740273120046,0.05350079,2775.3,2775.2,3.60334]
[1740273120245,0.7972,2775.2,2774.8,0.257]
[1740273120433,0.7972,2775.2,2774.8,3.86077]
[1740273120622,0.05333617,2775.1,2774.9,3.60363]
[1740273121225,0.05333617,2775.1,2774.8,4.56614891]
[1740273121425,0.55,2775.0,2774.6,3.60402]
[1740273121651,0.7972,2774.9,2774.4,3.60429]
[1740273121855,0.85014133,2774.9,2774.5,3.60421]
[1740273122021,0.55,2774.8,2774.4,3.60437]
[1740273122421,0.05270823,2774.7,2774.4,3.60437]
[1740273122831,0.55,2774.8,2774.4,3.60437]
[1740273123152,0.55,2774.8,2774.3,1.01480753]
[1740273123343,0.55,2774.6,2774.4,3.60428]
[1740273123942,0.05236929,2774.5,2774.4,3.60428]
[1740273124131,0.05236929,2774.5,2774.3,0.73922267]
[1740273124330,0.84956929,2774.5,2774.1,0.005]
[1740273124529,0.55,2774.4,2774.2,3.60462]
[1740273124714,0.60229005,2774.4,2774.2,3.60462]
[1740273129655,0.60229005,2774.4,2774.2,7.20918]
[1740273129858,0.60229005,2774.4,2774.2,3.60456]
[1740273130476,0.60229005,2774.4,2774.2,3.60455]
[1740273130844,0.60229005,2774.4,2774.2,7.20911]
[1740273131144,0.60229005,2774.4,2774.2,3.60455]
[1740273137068,0.60229005,2774.4,2774.2,7.20912]
[1740273137579,0.60229005,2774.4,2774.2,3.60455]
[1740273140181,0.60229005,2774.4,2774.2,3.60453]
[1740273144992,0.60229005,2774.4,2774.1,0.005]
[1740273148874,0.55,2774.2,2774.1,0.005]
[1740273149394,0.60053019,2774.2,2774.1,0.005]
[1740273154101,0.05053019,2774.2,2774.1,5.23305703]
[1740273154804,0.55,2774.4,2774.3,3.60451]
[1740273158190,0.60054959,2774.4,2774.3,3.60451]
[1740273163227,0.05054959,2774.4,2774.3,6.34473873]
[1740273163427,5.24,2774.5,2774.4,3.60438]
[1740273164584,5.28879047,2774.5,2774.4,3.60438]
[1740273166201,0.04879047,2774.5,2774.4,3.60438]
[1740273166408,5.79,2774.9,2774.6,3.60403]
[1740273166979,0.55,2774.7,2774.6,3.60403]
[1740273167487,0.59894893,2774.7,2774.6,3.60403]
[1740273168407,0.59894893,2774.7,2774.4,7.20858]
[1740273168718,0.59894893,2774.7,2774.6,3.60412]
[1740273172310,0.04894893,2774.7,2774.6,3.60412]
[1740273172905,5.79,2774.9,2774.8,3.60386]
[1740273173220,5.83926922,2774.9,2774.8,3.60386]
[1740273173391,5.83926922,2774.9,2774.5,3.86115]
[1740273173594,5.83926922,2774.9,2774.5,7.46533]
[1740273174689,5.83926922,2774.9,2774.6,3.60407]
[1740273178202,0.59926922,2774.9,2774.6,3.60407]
[1740273181640,0.59926922,2774.9,2774.6,3.60405]
[1740273184735,0.59926922,2774.9,2774.6,3.60404]
[1740273185339,0.59926922,2774.9,2774.6,7.20809]
[1740273185544,0.59926922,2774.9,2774.6,3.60404]
[1740273185931,0.7976,2774.7,2774.1,0.005]
[1740273186129,0.55,2774.2,2774.1,0.005]
[1740273190336,5.24,2774.4,2774.3,3.60451]
[1740273190840,5.79,2774.4,2774.3,3.60451]
[1740273191343,0.55,2774.3,2774.2,3.60464]
[1740273191710,0.55,2774.3,2774.1,3.60977]
[1740273191938,0.55,2774.3,2774.1,0.005]
[1740273196250,4.91844,2774.2,2774.1,0.005]
[1740273196763,1.3138,2774.2,2774.1,0.005]
[1740273198253,4.91844,2774.2,2774.1,0.005]
[1740273201874,10.15844,2774.2,2774.1,0.005]
[1740273210284,13.15844,2774.2,2774.1,0.005]
[1740273216292,5.79,2774.2,2774.1,0.005]
[1740273217106,9.39464,2774.2,2774.1,0.005]
[1740273217298,5.79,2774.2,2774.1,0.005]
[1740273217603,5.24,2774.2,2774.1,5.46669156]
[1740273218583,5.24,2774.2,2774.1,3.84297]
[1740273218905,5.24,2774.2,2774.1,4.56448624]
[1740273219779,5.79,2774.5,2774.1,4.56448624]
[1740273223499,9.39432,2774.5,2774.1,0.95971624]
[1740273224735,0.55,2774.3,2774.1,0.95971624]
[1740273225030,0.55,2774.3,2774.1,0.72651624]
[1740273227933,0.55,2774.3,2774.1,0.005]
[1740273230034,0.55,2774.4,2774.1,0.005]
[1740273231038,4.15439,2774.4,2774.1,0.005]
[1740273236457,0.04813028,2774.3,2774.1,0.005]
[1740273245181,0.04813028,2774.3,2774.1,3.60974]
[1740273245474,0.55,2774.2,2774.1,0.005]
[1740273245791,0.59803856,2774.2,2774.1,0.005]
[1740273261961,1.39383856,2774.2,2774.1,0.005]
[1740273263899,0.59803856,2774.2,2774.1,0.005]
[1740273270193,0.59803856,2774.2,2774.1,3.60977]
[1740273270494,0.59803856,2774.2,2774.1,3.84297]
[1740273271764,0.59803856,2774.2,2774.1,0.2382]
[1740273275769,0.59803856,2774.2,2774.1,0.005]
[1740273279666,4.20267856,2774.2,2774.1,0.005]
[1740273279903,5.02207856,2774.2,2774.1,0.005]
[1740273280720,6.64582513,2774.2,2774.1,0.005]
[1740273280874,3.60594,2773.2,2772.9,0.2332]
[1740273281079,3.60594,2773.2,2773.0,0.256]
[1740273281280,0.04713531,2773.1,2773.0,0.256]
[1740273283314,0.04713531,2773.1,2772.9,3.8395]
[1740273283810,4.97514,2773.4,2772.9,3.8395]
[1740273284143,4.42514,2773.4,2772.9,0.2332]
[1740273284317,0.59602158,2773.3,2772.9,3.83952]
[1740273285413,0.59602158,2773.3,2772.9,7.44571]
[1740273285613,0.59602158,2773.3,2772.9,3.83945]
[1740273286014,0.59602158,2773.3,2772.9,7.44571]
[1740273286426,0.59602158,2773.3,2772.9,7.4457]
[1740273286601,0.59602158,2773.3,2772.9,3.83945]
[1740273286911,0.59602158,2773.3,2772.9,3.83944]
[1740273287084,0.59602158,2773.3,2772.9,7.44569]
[1740273287415,0.59602158,2773.3,2772.9,3.83944]
[1740273287991,0.59602158,2773.3,2773.0,3.60616]
[1740273288197,0.04602158,2773.3,2773.2,3.60594]
[1740273288400,0.04602158,2773.3,2773.2,3.83914]
[1740273288619,5.24,2773.5,2773.2,0.2332]
[1740273288820,5.79,2773.5,2773.4,3.60568]
[1740273289218,5.24,2773.5,2773.4,3.60568]
[1740273289926,5.24,2773.5,2773.3,3.60579]
[1740273290989,0.55,2773.7,2773.3,3.60571]
[1740273292121,4.1553,2773.7,2773.3,3.60571]
[1740273292422,0.85556554,2773.6,2773.3,3.60571]
[1740273292633,0.85556554,2773.6,2773.3,4.32541134]
[1740273292812,0.55,2773.5,2773.1,3.60597]
[1740273293123,3.60576,2773.4,2773.0,0.2332]
[1740273293319,3.64846696,2773.4,2773.0,0.2332]
[1740273293521,0.55,2773.3,2773.0,0.2332]
[1740273293685,0.55,2773.3,2773.0,3.83933]
[1740273293889,0.04254835,2773.2,2773.0,3.83933]
[1740273294221,0.55,2773.3,2773.0,3.83933]
[1740273294527,0.04246904,2773.1,2772.7,0.50067317]
[1740273294685,4.41871,2773.2,2772.7,4.36418317]
[1740273295117,0.0425812,2773.1,2772.8,3.60645]
[1740273295433,0.0425812,2773.1,2772.9,3.60632]
[1740273298422,0.55,2773.2,2772.8,3.6064]
[1740273298626,0.55,2773.2,2773.0,3.60619]
[1740273299429,0.0425812,2773.1,2773.0,3.60619]
[1740273301205,0.0425812,2773.1,2772.7,8.43704763]
[1740273301515,0.55,2773.2,2772.8,3.60636]
[1740273301824,0.04251262,2773.1,2772.7,5.08567972]
[1740273302014,1.3449,2773.0,2772.5,3.84]
[1740273302221,1.3449,2773.0,2772.5,7.70378]
[1740273302513,0.04213755,2772.9,2772.5,4.09698]
[1740273302716,0.04213755,2772.9,2772.6,3.60669]
[1740273303228,0.04213755,2772.9,2772.8,3.60646]
[1740273303534,0.04213755,2772.9,2772.8,3.83966]
[1740273303718,0.55,2773.2,2773.1,3.60599]
[1740273303891,0.55,2773.2,2772.9,3.60633]
[1740273304090,0.55,2773.2,2773.0,3.60617]
[1740273304325,0.55,2773.2,2772.9,3.60633]
[1740273305024,5.24,2773.3,2773.0,3.35136791]
[1740273305238,0.1,2774.9,2773.0,3.35136791]
[1740273305239,0.7949,2774.2,2773.0,3.35136791]
[1740273305402,3.60523,2773.8,2773.2,3.60586]
[1740273305609,0.7949,2773.7,2773.2,3.60586]
[1740273305929,0.7949,2773.7,2773.3,3.6058]
[1740273306505,0.7949,2773.7,2773.3,3.60573]
[1740273306830,0.04089601,2773.6,2773.4,3.60561]
[1740273307725,0.04089601,2773.6,2773.1,3.83926]
[1740273307917,0.04089601,2773.6,2773.2,0.257]
[1740273308118,3.64637601,2773.6,2773.2,0.257]
[1740273308418,3.60556,2773.5,2773.2,0.257]
[1740273308825,0.04030283,2773.4,2773.2,0.257]
[1740273309030,0.04030283,2773.4,2772.9,3.60624]
[1740273309031,4.40079,2773.3,2772.9,0.256]
[1740273309230,3.60595,2773.2,2772.9,0.256]
[1740273309398,3.64643067,2773.2,2772.9,0.256]
[1740273309600,7.25250067,2773.2,2772.8,0.2332]
[1740273309799,3.64643067,2773.2,2772.8,0.256]
[1740273310002,0.55,2773.0,2772.8,0.256]
[1740273310203,0.04000594,2772.9,2772.8,0.256]
[1740273311444,0.04000594,2772.9,2772.8,3.86246]
[1740273311945,0.04000594,2772.9,2772.8,0.256]
[1740273313439,0.04000594,2772.9,2772.8,3.86246]
[1740273323959,0.04000594,2772.9,2772.8,4.82313485]
[1740273324168,5.24,2773.2,2772.8,4.58993485]
[1740273324458,5.24,2773.2,2773.1,3.83927]
[1740273325180,5.2783724,2773.2,2773.1,3.83927]
[1740273326688,0.0383724,2773.2,2773.1,3.83927]
[1740273326989,0.55,2773.7,2773.1,4.91895179]
[1740273327282,1.3508,2773.5,2773.1,3.83927]
[1740273327683,0.03869303,2773.4,2773.1,3.83921]
[1740273327986,0.03869303,2773.4,2773.1,7.44519]
[1740273328387,0.03869303,2773.4,2773.2,3.60593]
[1740273328686,0.03869303,2773.4,2773.2,3.60591]
[1740273330198,0.03869303,2773.4,2773.2,7.21178]
[1740273330506,0.03869303,2773.4,2773.3,3.60581]
[1740273333295,6.0024,2773.9,2773.5,3.60544]
[1740273333488,0.55,2773.8,2773.5,3.60544]
[1740273334299,0.55,2773.8,2773.3,3.35136791]
[1740273334466,0.55,2773.8,2773.4,3.60567]
[1740273334667,0.55,2773.8,2773.3,3.35136791]
[1740273334885,4.15521,2773.8,2773.3,3.6058]
[1740273336001,4.15521,2773.8,2773.1,0.73951837]
[1740273336002,0.55,2773.4,2773.1,0.73951837]
[1740273336201,0.7842,2773.3,2773.1,0.73951837]
[1740273336499,13.18014,2773.2,2773.1,0.73951837]
[1740273336700,3.60641,2772.9,2772.4,3.60691]
[1740273336932,0.55,2772.8,2772.4,3.60691]
[1740273337096,0.58740537,2772.8,2772.4,3.60691]
[1740273337302,4.19387537,2772.8,2772.3,0.256]
[1740273337503,0.58740537,2772.8,2772.7,0.736638]
[1740273338005,0.03740537,2772.8,2772.7,0.736638]
[1740273338834,0.03740537,2772.8,2772.7,4.343228]
[1740273344921,0.03740537,2772.8,2772.7,5.1615418]
[1740273345232,0.03624248,2772.8,2772.7,5.1615418]
[1740273345755,5.24,2773.1,2772.8,3.60634]
[1740273347157,5.24,2773.1,2772.9,3.60625]
[1740273347352,5.24,2773.1,2773.0,3.6062]
[1740273347553,0.7842,2773.4,2773.3,3.60581]
[1740273347918,1.3342,2773.4,2773.3,3.60581]
[1740273348624,1.36945184,2773.4,2773.3,3.60581]
[1740273349360,0.03525184,2773.4,2773.3,3.60581]
[1740273349653,5.24,2773.8,2773.4,3.60557]
[1740273349862,6.0242,2773.9,2773.4,3.60557]
[1740273350164,0.55,2773.8,2773.4,3.60557]
[1740273351872,0.55,2773.8,2773.5,3.60554]
[1740273352082,0.55,2773.8,2773.4,7.21116]
[1740273352245,0.03600697,2773.7,2773.4,7.21116]
[1740273352447,0.03600697,2773.7,2773.4,3.60557]
[1740273352646,0.55,2773.8,2773.4,3.60557]
[1740273353385,0.03602975,2773.7,2773.4,3.60557]
[1740273353584,0.55,2773.8,2773.4,3.60557]
[1740273353884,0.03602975,2773.7,2773.4,3.60557]
[1740273354382,0.55,2773.8,2773.4,3.60557]
[1740273354557,0.03595046,2773.6,2773.4,3.60557]
[1740273354751,0.55,2773.8,2773.4,3.60557]
[1740273355282,0.03602975,2773.7,2773.4,3.60557]
[1740273355679,0.55,2773.8,2773.4,3.60557]
[1740273355882,0.03595046,2773.6,2773.4,3.60557]
[1740273356083,0.55,2773.8,2773.4,3.60557]
[1740273356551,0.03602975,2773.7,2773.4,3.60557]
[1740273356754,0.7842,2773.9,2773.4,0.744461]
[1740273356968,0.8304,2774.1,2773.5,3.35136791]
[1740273357181,0.03610903,2773.8,2773.7,3.60529]
[1740273357481,5.24,2774.2,2774.0,3.60484]
[1740273357697,0.8304,2774.3,2774.0,3.60484]
[1740273359446,0.03540666,2774.2,2774.0,3.60484]
[1740273359784,0.8304,2774.3,2774.0,3.60484]
[1740273360284,0.03605682,2774.2,2773.9,3.60498]
[1740273360647,0.8304,2774.3,2774.0,3.6049]
[1740273360981,0.03596512,2774.1,2774.0,3.6049]
[1740273361586,4.43491,2774.3,2773.8,3.6051]
[1740273361883,0.03604436,2774.2,2773.8,3.6051]
[1740273362262,0.8304,2774.3,2773.8,3.6051]
[1740273362461,0.03465972,2774.1,2773.8,3.6051]
[1740273362672,0.03473896,2774.2,2773.8,3.60509]
[1740273362873,0.03458047,2774.0,2773.8,3.60509]
[1740273363095,4.43491,2774.3,2773.8,3.60509]
[1740273363277,0.03450121,2773.9,2773.8,3.60509]
[1740273363546,0.8304,2774.3,2773.8,4.42117773]
[1740273363751,0.03450121,2773.9,2773.8,4.42117773]
[1740273364053,0.8304,2774.3,2773.9,3.60496]
[1740273365499,0.8304,2774.3,2774.0,3.6049]
[1740273366484,5.24,2774.4,2773.7,0.71752731]
[1740273366688,5.24,2774.4,2774.2,3.60454]
[1740273366925,5.24,2774.4,2774.2,7.20911]
[1740273367220,5.24,2774.4,2774.2,3.60454]
[1740273368131,5.24,2774.4,2774.0,7.44282]
[1740273368299,5.24,2774.4,2774.0,3.83801]
[1740273369329,5.24,2774.4,2774.0,7.44283]
[1740273369706,5.24,2774.4,2774.1,3.60475]
[1740273370233,5.24,2774.4,2774.0,3.83801]
[1740273371234,4.98465,2774.5,2774.0,3.83801]
[1740273371395,4.98465,2774.5,2774.0,4.68466095]
[1740273372134,4.98465,2774.5,2774.0,4.45146095]
[1740273373296,8.589,2774.5,2774.0,4.45146095]
[1740273373504,4.98465,2774.5,2774.0,4.45146095]
[1740273375203,1.3804,2774.5,2774.1,3.60477]
[1740273376740,1.3804,2774.5,2774.2,3.60459]
[1740273377803,0.8304,2774.5,2774.2,3.60459]
[1740273381351,0.8304,2774.5,2774.1,3.60476]
[1740273381524,4.43477,2774.5,2773.9,4.13555548]
[1740273381860,4.43477,2774.5,2774.0,3.60489]
[1740273383002,4.43477,2774.5,2773.2,8.99591]
[1740273383003,0.8167,2774.0,2773.4,0.501498]
[1740273383201,0.55,2773.9,2773.2,0.2332]
[1740273383419,4.42196,2773.8,2773.2,3.60587]
[1740273384334,4.42196,2773.8,2773.0,0.4892]
[1740273384536,0.8167,2773.8,2773.1,0.82966503]
[1740273384839,0.8167,2774.0,2773.5,0.2332]
[1740273385133,3.60525,2773.8,2773.3,4.34328106]
[1740273386043,0.55,2773.9,2773.4,3.60564]
[1740273386207,0.8167,2774.0,2773.6,3.60539]
[1740273386410,0.8167,2774.0,2773.7,3.6052]
[1740273386628,0.8167,2774.0,2773.5,7.21092]
[1740273386937,0.8167,2774.0,2773.6,3.60532]
[1740273387138,0.8167,2774.0,2773.3,0.73755106]
[1740273387339,0.8167,2774.0,2773.7,3.60521]
[1740273388340,0.8167,2774.0,2773.5,3.60546]
[1740273389226,0.8167,2774.0,2773.5,7.21092]
[1740273389755,0.8167,2774.0,2773.5,3.60546]
[1740273389932,0.8167,2774.0,2773.6,3.60541]
[1740273390242,4.42162,2774.0,2773.5,3.60552]
[1740273390647,4.42162,2774.0,2773.5,7.21104]
[1740273391145,4.42162,2774.0,2773.3,0.73755106]
[1740273391146,0.55,2773.9,2773.3,0.73755106]
[1740273391463,0.7514,2773.6,2773.3,0.256]
[1740273391817,0.7514,2773.6,2773.3,3.8617]
[1740273392860,0.7514,2773.6,2773.3,0.256]
[1740273393529,0.7514,2773.8,2773.6,3.60537]
[1740273394461,0.7514,2774.2,2773.8,3.60508]
[1740273394756,3.55,2774.1,2773.7,7.21051]
[1740273395055,0.7514,2774.2,2774.0,3.6049]
[1740273395243,5.24,2774.3,2774.0,3.6049]
[1740273395444,5.24,2774.3,2774.2,3.60464]
[1740273395742,5.24,2774.3,2773.7,3.83846]
[1740273395743,0.7514,2774.4,2773.8,0.71353786]
[1740273395942,3.60476,2774.2,2773.6,7.21075]
[1740273396147,3.60476,2774.2,2773.7,3.60528]
[1740273396658,0.7514,2774.4,2773.9,3.60493]
[1740273397059,4.3558,2774.4,2773.7,7.21041]
[1740273397358,3.6046,2774.3,2773.8,3.60515]
[1740273400463,7.96029,2774.4,2773.8,3.60515]
[1740273400963,4.3558,2774.4,2773.7,3.60519]
[1740273401171,4.3558,2774.4,2773.9,3.60496]
[1740273402534,0.7514,2774.4,2774.0,3.60484]
[1740273404171,0.7514,2774.4,2773.9,3.60496]
[1740273404361,0.7514,2774.4,2774.1,3.60477]
[1740273404558,0.7514,2774.4,2773.9,3.60493]
[1740273407963,4.35579,2774.4,2773.9,3.60493]
[1740273410776,7.96025,2774.4,2773.9,3.60493]
[1740273411072,3.60464,2774.2,2773.5,4.55839756]
[1740273411300,0.7655,2774.1,2773.2,5.6232]
[1740273411463,0.7758,2773.6,2773.3,0.256]
[1740273412371,0.7758,2773.6,2773.3,0.98930252]
[1740273413001,0.7758,2773.6,2773.3,4.59508252]
[1740273413974,0.7758,2773.6,2773.3,0.98930252]
[1740273416191,0.7758,2773.3,2772.9,11.82008241]
[1740273416359,0.7758,2773.3,2772.9,14.70358782]
[1740273416698,0.7758,2773.3,2773.0,3.60614]
[1740273417895,0.7758,2773.3,2773.0,3.60612]
[1740273418293,0.7758,2773.3,2772.9,14.44758782]
[1740273418476,4.38168,2773.3,2772.9,11.82008241]
[1740273418874,7.9876,2773.3,2772.9,11.82008241]
[1740273419417,4.38168,2773.3,2772.9,11.82008241]
[1740273419593,0.7758,2773.3,2772.9,11.82008241]
[1740273419787,0.7758,2773.3,2772.9,15.42639241]
[1740273422000,0.7758,2773.3,2773.1,3.60603]
[1740273422764,0.8164,2773.6,2773.1,3.60595]
[1740273423179,0.8164,2773.6,2773.1,3.60605]
[1740273423400,0.8164,2773.6,2773.4,3.60568]
[1740273424097,0.8164,2773.6,2773.2,7.21178]
[1740273424299,0.8164,2773.6,2773.0,0.2332]
[1740273424483,0.8164,2773.6,2773.1,3.60599]
[1740273424676,0.8164,2773.6,2773.2,3.6059]
[1740273427811,0.8164,2773.6,2773.5,0.72913468]
[1740273430632,4.97182,2773.6,2773.5,0.72913468]
[1740273431555,0.7895,2773.4,2772.9,8.31840241]
[1740273431969,4.3952,2773.4,2772.9,8.31840241]
[1740273433351,4.39532,2773.3,2772.9,4.45608241]
[1740273436713,4.9589,2773.0,2772.9,4.45608241]
[1740273437136,3.60645,2772.9,2772.4,0.256]
[1740273437520,3.60647,2772.8,2772.4,0.97526859]
[1740273437926,0.8027,2772.7,2772.4,0.256]
[1740273438262,4.40933,2772.7,2772.3,0.256]
[1740273438749,4.40933,2772.7,2772.3,0.9702857]
[1740273438944,3.60682,2772.6,2772.3,0.7142857]
[1740273439147,7.21363,2772.6,2772.3,0.7142857]
[1740273439344,3.60681,2772.6,2772.3,0.7142857]
[1740273439548,0.8027,2772.5,2772.1,0.256]
[1740273439843,0.55,2772.4,2771.9,10.97256]
[1740273440157,0.8027,2772.3,2771.9,8.08152439]
[1740273441211,0.8027,2772.5,2772.0,3.60739]
[1740273441650,0.8027,2772.5,2771.9,8.08152439]
[1740273441818,0.8027,2772.5,2772.2,3.60714]
[1740273442239,0.8027,2772.5,2772.3,3.607]
[1740273442756,0.8027,2772.5,2772.4,3.60698]
[1740273442956,0.8027,2772.8,2772.5,3.60682]
[1740273443276,0.8027,2772.8,2772.1,0.2332]
[1740273443277,0.8027,2772.8,2772.3,3.60704]
[1740273443447,0.8027,2772.8,2772.3,3.607]
[1740273443657,0.8027,2772.8,2772.4,3.6069]
[1740273445814,0.8027,2772.8,2772.5,3.60672]
[1740273447647,4.40936,2772.7,2771.9,11.68906439]
[1740273447992,0.8027,2772.5,2772.0,3.86343]
[1740273448136,0.8027,2772.5,2772.0,0.256]
[1740273448337,0.8027,2772.5,2772.1,3.6073]
[1740273449093,0.8027,2772.5,2772.2,3.60723]
[1740273450176,0.8027,2772.5,2772.2,3.60716]
[1740273450549,0.8027,2772.5,2772.0,3.8634]
[1740273450748,0.8027,2772.5,2771.9,7.365]
[1740273450939,0.8027,2772.3,2771.9,7.365]
[1740273451144,0.8027,2772.3,2771.8,3.86367]
[1740273451661,0.8027,2772.3,2771.5,0.26757561]
[1740273451973,4.3629,2772.0,2771.5,0.98926904]
[1740273452269,4.3629,2772.0,2771.5,0.256]
[1740273452946,0.7554,2772.0,2771.5,3.86412]
[1740273453275,0.7554,2772.0,2771.6,3.60793]
[1740273453972,0.7554,2772.0,2771.5,0.256]
[1740273454172,0.7554,2772.2,2772.1,3.60732]
[1740273454578,5.9954,2772.5,2771.8,3.35136791]
[1740273454746,5.24,2772.5,2771.9,0.2332]
[1740273455144,0.7554,2772.7,2772.6,3.60672]
[1740273456054,0.7554,2773.1,2772.4,0.2332]
[1740273456258,0.7554,2773.1,2772.7,3.60652]
[1740273457681,0.7554,2773.1,2773.0,3.6062]
[1740273457879,0.7554,2773.1,2772.6,3.60671]
[1740273458052,0.7554,2773.1,2772.8,3.60645]
[1740273458675,0.7554,2773.1,2773.0,3.6062]
[1740273459652,5.24,2773.2,2773.0,7.2124]
[1740273459852,0.7714,2773.3,2773.2,3.60594]
[1740273461452,0.7714,2773.3,2773.0,3.60609]
[1740273462187,0.7714,2773.3,2773.1,3.60598]
[1740273462481,0.7714,2773.3,2773.1,7.21195]
[1740273462858,0.7714,2773.3,2773.1,3.60597]
[1740273464984,5.24,2773.6,2773.5,3.60555]
[1740273464985,0.7714,2773.6,2773.5,3.60555]
[1740273465185,6.0114,2774.0,2773.1,1.210421]
[1740273465383,0.7714,2773.8,2773.2,3.60587]
[1740273465560,0.7714,2773.8,2773.3,3.60574]
[1740273465751,0.7714,2773.8,2773.2,3.60587]
[1740273465952,0.7714,2773.8,2773.3,3.60579]
[1740273466153,4.37657,2773.8,2773.2,3.60585]
[1740273466354,0.7714,2773.6,2773.1,3.86205]
[1740273466980,0.7714,2773.6,2773.1,3.86206]
[1740273467185,0.7714,2773.6,2773.1,7.21212]
[1740273467385,0.7714,2773.6,2773.1,3.606]
[1740273467594,0.7714,2773.6,2773.2,3.60592]
[1740273468975,0.7714,2773.6,2773.4,3.60564]
[1740273469977,0.7714,2773.6,2773.4,3.60559]
[1740273470293,0.7714,2773.6,2773.5,3.60555]
[1740273470663,0.7714,2773.6,2773.4,3.60559]
[1740273470863,0.7714,2773.6,2773.4,7.21119]
[1740273471090,0.7714,2773.6,2773.4,3.60559]
[1740273471598,0.7541,2773.8,2773.6,3.60541]
[1740273471896,0.7541,2773.8,2773.5,3.60555]
[1740273472297,0.7541,2773.8,2773.6,3.6054]
[1740273472907,0.7541,2773.8,2773.6,7.21069]
[1740273473097,0.7541,2773.8,2773.6,3.60533]
[1740273473887,0.7541,2773.8,2773.6,7.21068]
[1740273474090,0.7541,2773.8,2773.6,7.21067]
[1740273474372,0.7541,2773.8,2773.5,0.72426354]
[1740273476880,0.55,2773.7,2773.5,0.72426354]
[1740273477084,3.60522,2773.8,2773.0,0.2332]
[1740273477085,4.35802,2773.6,2773.0,3.86211]
[1740273477285,4.35802,2773.6,2773.1,3.60602]
[1740273477486,0.7526,2773.6,2773.1,3.60602]
[1740273477685,0.7526,2773.6,2773.3,0.72671867]
[1740273478907,0.7526,2773.6,2773.2,3.60592]
[1740273481013,4.15563,2773.5,2773.0,3.60611]
[1740273481192,4.3583,2773.4,2772.9,3.86233]
[1740273481379,0.7526,2773.4,2773.0,3.60618]
[1740273483522,3.60595,2773.2,2772.7,4.34019885]
[1740273483719,0.7526,2773.1,2772.8,0.256]
[1740273484016,0.7526,2773.1,2772.7,3.6065]
[1740273484496,0.7526,2773.1,2772.8,3.60645]
[1740273485597,0.7526,2773.1,2772.7,3.6065]
[1740273485913,0.7526,2773.1,2772.7,3.60658]
[1740273486116,0.7526,2773.1,2772.6,3.86271]
[1740273486818,3.60626,2773.0,2772.6,0.256]
[1740273487160,0.7526,2772.8,2772.6,0.256]
[1740273487513,4.35938,2772.6,2772.1,15.36272914]
[1740273487717,0.7526,2772.6,2772.1,11.75537914]
[1740273487919,5.24,2772.9,2772.5,3.60685]
[1740273488119,0.7526,2772.8,2772.6,3.60662]
[1740273488417,0.7526,2772.8,2772.7,3.60659]
[1740273488622,0.7526,2772.8,2772.5,3.60685]
[1740273488820,0.7526,2772.8,2772.5,3.60678]
[1740273489390,0.7526,2772.8,2772.6,3.60671]
[1740273492621,0.7526,2772.8,2772.4,7.21383]
[1740273493521,0.7526,2772.8,2772.4,3.60685]
[1740273493723,0.7526,2772.8,2772.5,3.60685]
[1740273495331,0.7526,2772.8,2772.1,11.98857914]
[1740273495498,0.8237,2772.6,2772.1,15.36265914]
[1740273495703,0.8237,2772.6,2772.2,0.256]